fUST/lending_fUST_20241014
["ID","MTS","AMOUNT","RATE_DAILY","PERIOD"]
[340204381,1728839441256,-151.0,0.0002679,7]
[340204382,1728839441267,-74025.616619,0.00026796,4]
[340204383,1728839441280,-104847.294739,0.00026796,4]
[340204384,1728839441289,-150.112233,0.000268,5]
[340204385,1728839441299,-150.112233,0.000268,6]
[340204386,1728839441309,-151.0,0.00026801,7]
[340204387,1728839441320,-156.087978,0.00026801,7]
[340204388,1728839441329,-151.0,0.00026801,7]
[340204389,1728839441339,-151.0,0.00026801,7]
[340204390,1728839441349,-151.0,0.00026801,7]
[340204391,1728839441359,-213.109367,0.00026801,7]
[340204392,1728839441371,-420.847232,0.00026801,7]
[340204393,1728839441380,-420.847232,0.00026801,7]
[340204394,1728839441390,-151.0,0.00026801,7]
[340204395,1728839441399,-151.0,0.00026801,7]
[340204396,1728839441409,-151.0,0.00026801,7]
[340204397,1728839441419,-151.0,0.00026801,7]
[340204398,1728839441429,-151.0,0.00026801,7]
[340204399,1728839441438,-151.0,0.00026801,7]
[340204400,1728839441448,-151.0,0.00026801,7]
[340204401,1728839441458,-151.0,0.00026801,7]
[340204402,1728839441467,-151.0,0.00026801,3]
[340204403,1728839441477,-151.0,0.00026801,7]
[340204404,1728839441486,-151.0,0.00026801,7]
[340204405,1728839441496,-151.0,0.00026801,7]
[340204406,1728839441506,-20000.0,0.00026817,2]
[340204407,1728839441515,-151.0,0.00026817,7]
[340204408,1728839441525,-151.0,0.00026817,7]
[340204409,1728839441535,-175.70194,0.00026817,7]
[340204410,1728839441544,-151.0,0.00026817,7]
[340204411,1728839441554,-151.0,0.00026817,7]
[340204412,1728839441563,-151.0,0.00026817,7]
[340204413,1728839441573,-151.0,0.00026817,7]
[340204414,1728839441586,-162.242588,0.00026817,7]
[340204415,1728839441595,-298.859879,0.00026817,7]
[340204416,1728839441605,-275.739137,0.00026817,7]
[340204417,1728839441614,-298.859879,0.00026817,7]
[340204418,1728839441624,-275.739137,0.00026817,7]
[340204419,1728839441634,-151.0,0.00026817,7]
[340204420,1728839441643,-151.0,0.00026817,7]
[340204421,1728839441654,-151.0,0.00026817,7]
[340204422,1728839441664,-175.644652,0.00026817,7]
[340204423,1728839441673,-175.644652,0.00026817,7]
[340204424,1728839441683,-274.049264,0.00026817,7]
[340204425,1728839441693,-151.0,0.00026817,7]
[340204426,1728839441703,-151.0,0.00026817,7]
[340204427,1728839441712,-498.365667,0.00026823,2]
[340204428,1728839441722,-175.26,0.00026862,2]
[340204429,1728839441731,-175.26,0.00026862,2]
[340204430,1728839441741,-175.26,0.00026862,2]
[340204431,1728839441751,-175.26,0.00026862,2]
[340204432,1728839441760,-175.26,0.00026862,2]
[340204433,1728839441770,-175.26,0.00026862,2]
[340204434,1728839441779,-175.26,0.00026862,2]
[340204435,1728839441789,-151.0,0.00026862,7]
[340204436,1728839441799,-151.0,0.00026862,7]
[340204437,1728839441809,-74025.616619,0.00026863,4]
[340204438,1728839441819,-104847.294739,0.00026863,4]
[340204439,1728839441829,-500.0,0.00026873,2]
[340204440,1728839441838,-500.0,0.00026873,2]
[340204441,1728839441848,-164.00220981,0.00026873,2]
[340204442,1728839441934,-500.0,0.00026873,2]
[340204443,1728839441943,-500.0,0.00026873,2]
[340204444,1728839441953,-500.0,0.00026873,2]
[340204445,1728839441963,-500.0,0.00026873,2]
[340204446,1728839441972,-500.0,0.00026873,2]
[340204447,1728839441982,-608.73119954,0.00026873,2]
[340204448,1728839441992,-500.0,0.00026873,2]
[340204449,1728839442002,-541.23806229,0.00026873,2]
[340204450,1728839442012,-500.0,0.00026873,2]
[340204451,1728839442023,-500.0,0.00026873,2]
[340204452,1728839442033,-166.666666,0.00026882,2]
[340204453,1728839442042,-159.075062,0.000269,6]
[340204454,1728839442052,-150.112233,0.000269,5]
[340204455,1728839442062,-151.0,0.000269,7]
[340204456,1728839442072,-151.0,0.000269,7]
[340204457,1728839442082,-151.0,0.000269,7]
[340204458,1728839442092,-151.0,0.000269,7]
[340204459,1728839442101,-151.0,0.000269,7]
[340204460,1728839442111,-151.0,0.000269,7]
[340204461,1728839442120,-420.847232,0.000269,7]
[340204462,1728839442130,-420.847232,0.000269,7]
[340204463,1728839442139,-151.0,0.000269,7]
[340204464,1728839442149,-151.0,0.000269,7]
[340204465,1728839442158,-151.0,0.000269,7]
[340204466,1728839442168,-150.112233,0.000269,6]
[340204467,1728839442179,-151.0,0.000269,7]
[340204468,1728839442188,-151.0,0.000269,7]
[340204469,1728839442198,-151.0,0.000269,7]
[340204470,1728839442208,-151.0,0.000269,7]
[340204471,1728839442218,-151.0,0.000269,7]
[340204472,1728839442228,-151.0,0.000269,7]
[340204473,1728839442237,-151.0,0.000269,7]
[340204474,1728839442247,-293.119231,0.000269,7]
[340204475,1728839442257,-150.112233,0.000269,9]
[340204477,1728839442267,-150.112233,0.000269,8]
[340204478,1728839442276,-151.0,0.0002691,7]
[340204480,1728839442286,-151.0,0.0002691,7]
[340204481,1728839442295,-151.0,0.0002691,7]
[340204482,1728839442304,-151.0,0.0002691,7]
[340204483,1728839442314,-151.0,0.0002691,7]
[340204484,1728839442323,-151.0,0.0002691,7]
[340204485,1728839442332,-420.847232,0.0002691,7]
[340204486,1728839442342,-420.847232,0.0002691,7]
[340204487,1728839442351,-151.0,0.0002691,7]
[340204488,1728839442360,-151.0,0.0002691,7]
[340204490,1728839442369,-151.0,0.0002691,7]
[340204492,1728839442378,-275.739137,0.0002691,7]
[340204493,1728839442387,-275.739137,0.0002691,7]
[340204494,1728839442397,-175.644652,0.0002691,7]
[340204495,1728839442406,-175.644652,0.0002691,7]
[340204496,1728839442416,-157.175027,0.0002693,7]
[340204497,1728839442425,-151.0,0.0002693,7]
[340204498,1728839442437,-152.858791,0.0002693,7]
[340204499,1728839442448,-151.0,0.0002693,7]
[340204500,1728839442459,-151.0,0.0002693,7]
[340204501,1728839442469,-151.0,0.0002693,7]
[340204503,1728839442479,-151.0,0.00026931,7]
[340204506,1728839442489,-498.365667,0.00026939,2]
[340204508,1728839442498,-151.0,0.0002694,7]
[340204511,1728839442508,-151.0,0.0002694,7]
[340204513,1728839442517,-151.0,0.00026941,7]
[340204515,1728839442527,-151.0,0.00026941,7]
[340204517,1728839442536,-151.0,0.00026941,7]
[340204518,1728839442546,-151.0,0.0002697,7]
[340204519,1728839442555,-500.0,0.00026973,2]
[340204520,1728839442565,-150.0,0.00026973,2]
[340204521,1728839442576,-167.563721,0.00026973,7]
[340204522,1728839442589,-151.0,0.00026973,7]
[340204523,1728839442599,-420.0,0.00026977,2]
[340204524,1728839442610,-584.91601245,0.00026978,2]
[340204525,1728839442621,-151.0,0.0002699,7]
[340204526,1728839442631,-151.0,0.0002699,7]
[340204527,1728839442643,-151.0,0.0002699,7]
[340204528,1728839442653,-151.0,0.0002699,7]
[340204529,1728839442665,-151.0,0.0002699,7]
[340204531,1728839442676,-151.0,0.0002699,7]
[340204532,1728839442687,-74025.616619,0.0002699,4]
[340204533,1728839442697,-104847.294739,0.0002699,4]
[340204534,1728839442709,-151.0,0.0002699,7]
[340204535,1728839442721,-151.0,0.0002699,7]
[340204536,1728839442730,-160.294878,0.00027,7]
[340204537,1728839442740,-151.0,0.00027,7]
[340204538,1728839442749,-150.112233,0.00027,9]
[340204539,1728839442759,-8399.79,0.00027,14]
[340204540,1728839442769,-1000.0,0.00027,120]
[340204542,1728839442779,-2144.42,0.00027,14]
[340204543,1728839442789,-3352.19,0.00027,14]
[340204544,1728839442799,-151.0,0.00027,7]
[340204545,1728839442809,-281.784425,0.00027,7]
[340204546,1728839442819,-151.0,0.00027,7]
[340204547,1728839442828,-151.0,0.00027,7]
[340204549,1728839442838,-151.0,0.00027,7]
[340204551,1728839442848,-151.0,0.00027,7]
[340204552,1728839442857,-151.0,0.00027,7]
[340204553,1728839442867,-151.0,0.00027,7]
[340204554,1728839442877,-151.0,0.00027,7]
[340204555,1728839442887,-151.0,0.00027,7]
[340204557,1728839442898,-231.47627,0.00027,7]
[340204559,1728839442908,-275.739137,0.00027,7]
[340204561,1728839442918,-275.739137,0.00027,7]
[340204562,1728839442927,-175.644652,0.00027,7]
[340204563,1728839442939,-175.644652,0.00027,7]
[340204564,1728839442949,-150.112233,0.00027,9]
[340204566,1728839442959,-150.112233,0.00027,10]
[340204568,1728839442970,-498.365667,0.00027054,2]
[340204569,1728839442982,-150.112233,0.000271,9]
[340204570,1728839442992,-150.112233,0.000271,9]
[340204571,1728839443004,-150.112233,0.000271,6]
[340204572,1728839443014,-150.112233,0.000271,6]
[340204573,1728839443024,-150.112233,0.000271,7]
[340204574,1728839443033,-29423.5081847,0.00027113,2]
[340204599,1728839445838,-417.31201474,0.00025083,2]
[340204600,1728839445892,-82.68798526,0.00025083,2]
[340204601,1728839445901,-552.09959309,0.00026453,2]
[340204602,1728839445911,-474.42897622,0.00026597,2]
[340204603,1728839445919,-263.86369814,0.00026687,10]
[340204604,1728839491200,152.58439594,0.00024024,2]
[340204622,1728839945067,152.0,0.00022,120]
[340204629,1728840061302,3313.7,0.00024,2]
[340204637,1728840252442,166.666666,0.00023565,2]
[340204644,1728840447148,-166.666666,0.00024207,2]
[340204645,1728840447170,-1800.0,0.00024487,2]
[340204646,1728840447191,-2472.10512065,0.000247,2]
[340204647,1728840450095,-1630.94001169,0.000247,2]
[340204648,1728840450117,-300.0,0.00024702,2]
[340204649,1728840450138,-300.0,0.00024702,2]
[340204650,1728840450159,-246.95545923,0.00024703,2]
[340204651,1728840450180,-4461.78078038,0.00024703,2]
[340204658,1728840546392,19130.32520152,0.00023953,2]
[340204659,1728840546419,5769.67479848,0.00023953,2]
[340204661,1728840559105,-250.0,0.00024196,2]
[340204662,1728840559127,-250.0,0.00024262,2]
[340204663,1728840559149,-250.0,0.00024328,2]
[340204703,1728840638290,-250.0,0.00024395,2]
[340204704,1728840638300,-250.0,0.00024461,2]
[340204705,1728840638310,-250.0,0.00024528,2]
[340204706,1728840638321,-250.0,0.00024594,2]
[340204707,1728840638332,-250.0,0.0002466,2]
[340204708,1728840638342,-250.0,0.00024727,2]
[340204709,1728840638352,-250.0,0.00024793,2]
[340204710,1728840638363,-166.666666,0.0002485,2]
[340204711,1728840638372,-250.0,0.00024859,2]
[340204712,1728840638383,-707.17358995,0.000249,2]
[340204713,1728840638393,-250.0,0.00024926,2]
[340204714,1728840638404,-500.0,0.00024973,2]
[340204715,1728840638413,-300.0,0.00024989,2]
[340204716,1728840638423,-300.0,0.00024989,2]
[340204717,1728840638432,-224.42,0.0002499,3]
[340204718,1728840638450,-673.26,0.0002499,3]
[340204719,1728840638460,-250.0,0.00024992,2]
[340204720,1728840638470,-213.55447268,0.00024999,2]
[340204721,1728840638479,-477.79520341,0.00024999,2]
[340204722,1728840638488,-248.57301147,0.00024999,2]
[340204723,1728840638498,-405.20762214,0.00024999,2]
[340204724,1728840638508,-336.45859452,0.00024999,2]
[340204725,1728840638517,-164.63697282,0.00025,2]
[340204726,1728840638527,-12638.25583645,0.00025,2]
[340204727,1728840638538,-7088.90515642,0.00025,2]
[340204732,1728840640052,-49407.4948667,0.00025,2]
[340204733,1728840640114,-12573.77217099,0.00025,2]
[340204738,1728840643214,-20.21529342,0.0002499,10]
[340204755,1728840872067,166.666666,0.0002356,2]
[340204758,1728841047261,164.928839,0.00023662,2]
[340204761,1728841068836,24900.0,0.00023936,2]
[340204762,1728841089180,3000.0,0.00023945,2]
[340204787,1728841403884,166.666666,0.00023343,2]
[340204788,1728841404120,166.666666,0.00023979,2]
[340204791,1728841519673,6090.64428949,0.00023476,2]
[340204792,1728841520018,6090.64428949,0.00023781,2]
[340204793,1728841520336,6090.64428949,0.00023885,2]
[340204796,1728841600403,305.261131,0.00023639,2]
[340204797,1728841608809,24900.0,0.00023648,2]
[340204799,1728841630025,250.0,0.0002389,2]
[340204800,1728841630238,250.0,0.00023956,2]
[340204802,1728841642120,-250.0,0.00024021,2]
[340204803,1728841642142,-101.37332003,0.00024087,2]
[340204804,1728841646173,-148.62667997,0.00024087,2]
[340204805,1728841646194,-250.0,0.00024152,2]
[340204806,1728841646215,-250.0,0.00024218,2]
[340204807,1728841646235,-602.49176059,0.00024224,2]
[340204808,1728841646262,-250.0,0.00024283,2]
[340204809,1728841646285,-305.261131,0.00024324,2]
[340204810,1728841646306,-250.0,0.00024349,2]
[340204811,1728841646327,-250.0,0.00024414,2]
[340204812,1728841646347,-150.61215566,0.00024421,2]
[340204813,1728841646368,-250.0,0.0002448,2]
[340204814,1728841646389,-250.0,0.00024545,2]
[340204815,1728841646409,-300.0,0.00024607,2]
[340204816,1728841646430,-300.0,0.00024607,2]
[340204817,1728841646451,-250.0,0.00024611,2]
[340204818,1728841646471,-166.666666,0.00024616,2]
[340204819,1728841646491,-250.0,0.00024677,2]
[340204820,1728841646513,-744.8233497,0.00024721,2]
[340204821,1728841646534,-6090.6442895,0.00024734,2]
[340204822,1728841646556,-250.0,0.00024742,2]
[340204823,1728841646578,-198.61815344,0.00024789,2]
[340204824,1728841646600,-193.66046304,0.00024789,2]
[340204825,1728841646622,-250.0,0.00024808,2]
[340204826,1728841646645,-250.0,0.00024873,2]
[340204827,1728841646666,-152.0,0.0002488,120]
[340204828,1728841646687,-2983.92033723,0.0002488,2]
[340204829,1728841646708,-2983.9203372,0.00024885,2]
[340204830,1728841646745,-1035.03818037,0.0002489,2]
[340204831,1728841649098,-1882.26031847,0.0002489,2]
[340204832,1728841723971,1504.1186484,0.00023928,2]
[340204871,1728841832248,-1464.22202607,0.0002469,2]
[340204880,1728841838409,-4626.42226343,0.0002469,2]
[340204882,1728841838421,-153.77540887,0.0002479,2]
[340204884,1728841838432,-300.0,0.0002486,2]
[340204886,1728841838442,-300.0,0.0002486,2]
[340204888,1728841838452,-3735.94429585,0.00024861,2]
[340204890,1728841838463,-3935.82343628,0.0002487,2]
[340204892,1728841838473,-66.62183836,0.0002489,2]
[340204894,1728841838482,-2983.9203372,0.00024895,2]
[340204895,1728841838492,-1792.80732128,0.000249,2]
[340204897,1728841838505,-674.80666933,0.000249,2]
[340204903,1728841838573,-516.30634659,0.000249,2]
[340204904,1728841838583,-250.0,0.00024939,2]
[340204905,1728841838593,-4509.17,0.00024951,10]
[340204906,1728841838603,-3757.64,0.00024951,10]
[340204907,1728841838614,-3131.37,0.00024951,10]
[340204908,1728841838624,-181.67,0.00024952,3]
[340204909,1728841838634,-545.03,0.00024952,3]
[340204910,1728841838646,-330.32114956,0.0002496,2]
[340204911,1728841838655,-323.62041134,0.0002496,2]
[340204912,1728841838665,-345.91817515,0.0002496,2]
[340204913,1728841838676,-500.0,0.0002496,2]
[340204914,1728841838687,-272.23168456,0.0002496,2]
[340204915,1728841838697,-627.84877156,0.0002496,2]
[340204916,1728841838707,-500.0,0.0002496,2]
[340204917,1728841838717,-500.0,0.0002496,2]
[340204918,1728841838727,-500.0,0.0002496,2]
[340204919,1728841838738,-500.0,0.0002496,2]
[340204920,1728841838747,-500.0,0.0002496,2]
[340204921,1728841838757,-500.0,0.0002496,2]
[340204922,1728841838767,-500.0,0.0002496,2]
[340204923,1728841838777,-516.6496138,0.0002496,2]
[340204924,1728841838787,-500.0,0.0002496,2]
[340204925,1728841838796,-500.0,0.0002496,2]
[340204926,1728841838806,-500.0,0.0002496,2]
[340204927,1728841838817,-500.0,0.0002496,2]
[340204928,1728841838827,-500.0,0.0002496,2]
[340204929,1728841838836,-500.0,0.0002496,2]
[340204930,1728841838846,-500.0,0.0002496,2]
[340204931,1728841838856,-500.0,0.0002496,2]
[340204932,1728841838866,-500.0,0.0002496,2]
[340204933,1728841838876,-500.0,0.0002496,2]
[340204934,1728841838886,-500.0,0.0002496,2]
[340204935,1728841838902,-500.0,0.0002496,2]
[340204936,1728841838911,-500.0,0.0002496,2]
[340204937,1728841838922,-500.0,0.0002496,2]
[340204938,1728841838931,-500.0,0.0002496,2]
[340204939,1728841838941,-500.0,0.0002496,2]
[340204940,1728841838951,-500.0,0.0002496,2]
[340204941,1728841838960,-500.0,0.0002496,2]
[340204942,1728841838969,-546.15347335,0.0002496,2]
[340204943,1728841838979,-500.0,0.0002496,2]
[340204944,1728841838988,-500.0,0.0002496,2]
[340204945,1728841838998,-500.0,0.0002496,2]
[340204946,1728841839008,-500.0,0.0002496,2]
[340204947,1728841839017,-500.0,0.0002496,2]
[340204948,1728841839026,-500.0,0.0002496,2]
[340204949,1728841839036,-500.0,0.0002496,2]
[340204950,1728841839046,-500.0,0.0002496,2]
[340204951,1728841839056,-500.0,0.0002496,2]
[340204952,1728841839065,-500.0,0.0002496,2]
[340204953,1728841839075,-500.0,0.0002496,2]
[340204954,1728841839085,-500.0,0.0002496,2]
[340204955,1728841839094,-500.0,0.0002496,2]
[340204956,1728841839105,-500.0,0.0002496,2]
[340204957,1728841839114,-550.0,0.0002496,2]
[340204958,1728841839124,-500.0,0.0002496,2]
[340204959,1728841839134,-500.0,0.0002496,2]
[340204960,1728841839146,-500.0,0.0002496,2]
[340204961,1728841839156,-500.0,0.0002496,2]
[340204962,1728841839166,-500.0,0.0002496,2]
[340204963,1728841839176,-500.0,0.0002496,2]
[340204964,1728841839186,-500.0,0.0002496,2]
[340204965,1728841839196,-500.0,0.0002496,2]
[340204966,1728841839206,-500.0,0.0002496,2]
[340204967,1728841839216,-500.0,0.0002496,2]
[340204968,1728841839225,-500.0,0.0002496,2]
[340204969,1728841839235,-500.0,0.0002496,2]
[340204970,1728841839245,-500.0,0.0002496,2]
[340204971,1728841839255,-500.0,0.0002496,2]
[340204972,1728841839264,-221.59717007,0.0002496,2]
[340204973,1728841839274,-500.0,0.0002496,2]
[340204974,1728841839283,-500.0,0.0002496,2]
[340204975,1728841839293,-500.0,0.0002496,2]
[340204976,1728841839303,-500.0,0.0002496,2]
[340204977,1728841839313,-500.0,0.0002496,2]
[340204978,1728841839323,-500.0,0.0002496,2]
[340204979,1728841839335,-500.0,0.0002496,2]
[340204980,1728841839345,-500.0,0.0002496,2]
[340204981,1728841839354,-500.0,0.0002496,2]
[340204982,1728841839364,-500.0,0.0002496,2]
[340204983,1728841839374,-500.0,0.0002496,2]
[340204984,1728841839384,-500.0,0.0002496,2]
[340204985,1728841839394,-500.0,0.0002496,2]
[340204986,1728841839404,-500.0,0.0002496,2]
[340204987,1728841839414,-500.0,0.0002496,2]
[340204988,1728841839425,-500.0,0.0002496,2]
[340204989,1728841839435,-500.0,0.0002496,2]
[340204990,1728841839445,-336.25710434,0.0002496,2]
[340204991,1728841839456,-14707.48435452,0.00024961,7]
[340204992,1728841839465,-10858.7393079,0.00024961,7]
[340204993,1728841839476,-86198.1753916,0.00024962,3]
[340204994,1728841839486,-41803.07962037,0.00024962,3]
[340204995,1728841839784,-2150.69816708,0.00024962,3]
[340204996,1728841839798,-76273.66951955,0.00024962,3]
[340204997,1728841839809,-2260.72,0.00024962,3]
[340205001,1728841839902,-1453.33,0.00024962,3]
[340205002,1728841839918,-726.66,0.00024962,3]
[340205003,1728841839928,-363.33,0.00024962,3]
[340205004,1728841839939,-1500.0,0.00024969,2]
[340205006,1728841839949,-191.07,0.0002497,2]
[340205007,1728841839959,-86198.1753916,0.0002497,3]
[340205008,1728841839968,-120227.447307,0.0002497,3]
[340205009,1728841839979,-86198.1753916,0.0002497,3]
[340205010,1728841839989,-120227.447307,0.0002497,3]
[340205011,1728841839999,-504.14125426,0.00024973,2]
[340205012,1728841840009,-500.0,0.00024973,2]
[340205013,1728841840020,-500.2679893,0.00024973,2]
[340205014,1728841840029,-500.0,0.00024973,2]
[340205015,1728841840039,-500.0,0.00024973,2]
[340205016,1728841840049,-500.0,0.00024973,2]
[340205017,1728841840059,-500.0,0.00024973,2]
[340205018,1728841840069,-161.68279538,0.00024973,2]
[340205019,1728841840080,-500.0,0.00024973,2]
[340205020,1728841840089,-258.03870099,0.00024973,2]
[340205021,1728841840098,-517.10721456,0.00024973,2]
[340205022,1728841840108,-500.0,0.00024973,2]
[340205023,1728841840119,-1000.0,0.0002498,2]
[340205024,1728841840129,-172396.350783,0.0002499,3]
[340205025,1728841840138,-120227.447307,0.0002499,3]
[340205026,1728841840149,-151.0,0.0002499,7]
[340205027,1728841840159,-151.0,0.0002499,7]
[340205028,1728841840169,-151.0,0.0002499,7]
[340205029,1728841840179,-151.0,0.0002499,7]
[340205030,1728841840190,-151.0,0.0002499,7]
[340205031,1728841840199,-151.0,0.0002499,7]
[340205032,1728841840209,-109336.51836026,0.00025,2]
[340205033,1728841840219,-273.80847385,0.00025,120]
[340205034,1728841840229,-8286.59,0.00025,14]
[340205035,1728841840239,-1842.13,0.00025,14]
[340205036,1728841840248,-3041.36,0.00025,14]
[340205037,1728841840258,-150.112233,0.00025,5]
[340205038,1728841840268,-151.0,0.00025,7]
[340205039,1728841840278,-151.0,0.00025,7]
[340205040,1728841840288,-151.0,0.00025,7]
[340205041,1728841840298,-500.0,0.00025,2]
[340205042,1728841840307,-151.0,0.00025,7]
[340205043,1728841840317,-502.7369016,0.00025,2]
[340205044,1728841840327,-151.0,0.00025,7]
[340205045,1728841840341,-151.0,0.00025,7]
[340205046,1728841840350,-250.0,0.00025004,2]
[340205047,1728841840360,-305.261131,0.00025008,2]
[340205048,1728841840370,-250.0,0.0002507,2]
[340205049,1728841840381,-1306.59773979,0.0002509,2]
[340205050,1728841840393,-250.0,0.00025135,2]
[340205051,1728841840402,-150.112233,0.000252,9]
[340205052,1728841840414,-1500.0,0.00025243,2]
[340205053,1728841840425,-166.666666,0.00025252,2]
[340205054,1728841840435,-6090.64428951,0.00025375,2]
[340205055,1728841840445,-150.112233,0.000254,7]
[340205056,1728841840457,-1500.0,0.00025517,2]
[340205057,1728841840468,-150.112233,0.000256,7]
[340205058,1728841840477,-1500.0,0.00025791,2]
[340205059,1728841840487,-150.112233,0.000258,7]
[340205060,1728841840497,-166.666666,0.00025888,2]
[340205061,1728841840507,-1500.0,0.00026065,2]
[340205062,1728841840517,-150.112233,0.000261,5]
[340205063,1728841840527,-200.0,0.0002616,14]
[340205064,1728841840536,-150.112233,0.000263,5]
[340205065,1728841840546,-363.34,0.00026322,3]
[340205066,1728841840557,-4521.44,0.00026332,3]
[340205067,1728841840567,-2906.66,0.00026332,3]
[340205068,1728841840577,-1453.32,0.00026332,3]
[340205069,1728841840587,-726.66,0.00026332,3]
[340205070,1728841840597,-1500.0,0.00026339,2]
[340205071,1728841840607,-271.02257768,0.00026342,2]
[340205072,1728841840617,-1000.0,0.00026342,2]
[340205073,1728841840626,-500.0,0.00026342,2]
[340205074,1728841840636,-500.46717225,0.00026342,2]
[340205075,1728841840646,-1000.0,0.00026342,2]
[340205076,1728841840657,-1000.0,0.00026342,2]
[340205077,1728841840667,-1000.0,0.0002637,2]
[340205078,1728841840676,-150.112233,0.000265,9]
[340205079,1728841840686,-166.666666,0.00026525,2]
[340205080,1728841840695,-150.112233,0.000266,9]
[340205081,1728841840706,-1500.0,0.00026613,2]
[340205082,1728841840716,-150.112233,0.000267,10]
[340205083,1728841840725,-29423.5081847,0.00026852,2]
[340205084,1728841840735,-1500.0,0.00026887,2]
[340205085,1728841840745,-150.112233,0.000269,9]
[340205086,1728841840754,-150.112233,0.000269,5]
[340205087,1728841840764,-420.0,0.00026936,2]
[340205088,1728841840774,-153.0,0.00026986,2]
[340205089,1728841840784,-1000.0,0.00027,2]
[340205090,1728841840793,-786.08961889,0.00027,2]
[340205091,1728841840803,-310.684,0.00027,15]
[340205092,1728841840813,-1000.0,0.00027,120]
[340205093,1728841840823,-150.112233,0.000271,6]
[340205094,1728841840833,-8286.59,0.000271,14]
[340205095,1728841840842,-487.43001038,0.00027112,2]
[340205096,1728841840852,-9616.34427986,0.00027113,2]
[340205097,1728841840862,-151.0,0.00027113,7]
[340205098,1728841840871,-151.0,0.00027113,7]
[340205099,1728841840882,-151.0,0.00027113,7]
[340205100,1728841840891,-151.0,0.00027113,7]
[340205101,1728841840901,-151.0,0.00027113,7]
[340205102,1728841840911,-151.0,0.00027113,7]
[340205103,1728841840921,-151.0,0.00027113,7]
[340205104,1728841840931,-151.0,0.00027113,7]
[340205105,1728841840940,-151.0,0.00027113,2]
[340205106,1728841840950,-151.0,0.00027113,7]
[340205107,1728841840959,-151.0,0.00027113,7]
[340205108,1728841840969,-151.0,0.00027113,7]
[340205109,1728841840978,-611.082266,0.00027113,7]
[340205110,1728841840988,-611.082266,0.00027113,7]
[340205111,1728841840998,-151.0,0.00027113,7]
[340205112,1728841841007,-151.0,0.00027113,7]
[340205113,1728841841017,-523.354867,0.00027113,7]
[340205114,1728841841026,-151.0,0.00027113,7]
[340205115,1728841841035,-523.354867,0.00027113,7]
[340205116,1728841841045,-151.0,0.00027113,3]
[340205117,1728841841055,-151.0,0.00027113,3]
[340205118,1728841841066,-151.0,0.00027113,7]
[340205119,1728841841075,-845.570428,0.00027113,7]
[340205120,1728841841085,-845.570428,0.00027113,7]
[340205121,1728841841095,-193.017395,0.00027113,7]
[340205122,1728841841104,-193.017395,0.00027113,7]
[340205123,1728841841114,-151.0,0.00027113,7]
[340205124,1728841841124,-151.0,0.00027113,7]
[340205125,1728841841133,-151.0,0.00027113,7]
[340205126,1728841841143,-151.0,0.00027113,7]
[340205127,1728841841153,-202.63,0.00027122,2]
[340205128,1728841841163,-202.63,0.00027122,2]
[340205129,1728841841173,-202.63,0.00027122,2]